fUST/lending_fUST_20240901
["ID","MTS","AMOUNT","RATE_DAILY","PERIOD"]
[336825007,1725193850324,-500.0,0.00025268,2]
[336825008,1725193850334,-500.0,0.00025268,2]
[336825009,1725193850343,-500.0,0.00025268,2]
[336825010,1725193850353,-500.0,0.00025268,2]
[336825011,1725193850362,-500.0,0.00025268,2]
[336825012,1725193850372,-500.0,0.00025268,2]
[336825013,1725193850382,-500.0,0.00025268,2]
[336825014,1725193850392,-500.0,0.00025268,2]
[336825015,1725193850401,-500.0,0.00025268,2]
[336825016,1725193850411,-500.0,0.00025268,2]
[336825017,1725193850420,-500.0,0.00025268,2]
[336825018,1725193850430,-500.0,0.00025268,2]
[336825019,1725193850439,-500.0,0.00025268,2]
[336825020,1725193850448,-500.0,0.00025268,2]
[336825021,1725193850458,-500.0,0.00025268,2]
[336825022,1725193850468,-500.0,0.00025268,2]
[336825023,1725193850477,-500.0,0.00025268,2]
[336825024,1725193850487,-500.0,0.00025268,2]
[336825025,1725193850497,-500.0,0.00025268,2]
[336825026,1725193850507,-500.0,0.00025268,2]
[336825027,1725193850516,-500.0,0.00025268,2]
[336825028,1725193850525,-500.0,0.00025268,2]
[336825029,1725193850534,-500.0,0.00025268,2]
[336825030,1725193850544,-500.0,0.00025268,2]
[336825031,1725193850553,-500.0,0.00025268,2]
[336825032,1725193850563,-500.0,0.00025268,2]
[336825033,1725193850573,-500.0,0.00025268,2]
[336825034,1725193850582,-500.0,0.00025268,2]
[336825035,1725193850591,-500.0,0.00025268,2]
[336825036,1725193850601,-500.0,0.00025268,2]
[336825037,1725193850610,-500.0,0.00025268,2]
[336825038,1725193850620,-502.33887815,0.00025268,2]
[336825039,1725193850629,-500.0,0.00025268,2]
[336825040,1725193850639,-500.0,0.00025268,2]
[336825041,1725193850648,-500.0,0.00025268,2]
[336825042,1725193850658,-500.0,0.00025268,2]
[336825043,1725193850667,-500.0,0.00025268,2]
[336825044,1725193850677,-500.0,0.00025268,2]
[336825045,1725193850687,-500.0,0.00025268,2]
[336825046,1725193850696,-500.0,0.00025268,2]
[336825047,1725193850705,-500.0,0.00025268,2]
[336825048,1725193850714,-500.0,0.00025268,2]
[336825049,1725193850723,-500.0,0.00025268,2]
[336825050,1725193850737,-500.0,0.00025268,2]
[336825051,1725193850746,-500.0,0.00025268,2]
[336825052,1725193850755,-500.0,0.00025268,2]
[336825053,1725193850765,-500.0,0.00025268,2]
[336825054,1725193850784,-500.0,0.00025268,2]
[336825055,1725193850795,-500.0,0.00025268,2]
[336825056,1725193850804,-500.0,0.00025268,2]
[336825057,1725193850815,-500.0,0.00025268,2]
[336825058,1725193850824,-500.0,0.00025268,2]
[336825059,1725193850834,-500.0,0.00025268,2]
[336825060,1725193850844,-500.0,0.00025268,2]
[336825061,1725193850854,-503.91093814,0.00025268,2]
[336825062,1725193850863,-524.37575311,0.00025268,2]
[336825063,1725193850875,-500.0,0.00025268,2]
[336825064,1725193850887,-500.0,0.00025268,2]
[336825065,1725193850898,-500.0,0.00025268,2]
[336825066,1725193850908,-500.0,0.00025268,2]
[336825067,1725193850918,-500.0,0.00025268,2]
[336825068,1725193850931,-500.0,0.00025268,2]
[336825069,1725193850942,-500.0,0.00025268,2]
[336825070,1725193850953,-500.0,0.00025268,2]
[336825071,1725193850965,-500.0,0.00025268,2]
[336825072,1725193850975,-500.0,0.00025268,2]
[336825073,1725193850984,-500.0,0.00025268,2]
[336825074,1725193850994,-500.0,0.00025268,2]
[336825075,1725193851004,-500.0,0.00025268,2]
[336825076,1725193851014,-500.0,0.00025268,2]
[336825077,1725193851023,-500.0,0.00025268,2]
[336825078,1725193851032,-792.55,0.00025268,2]
[336825079,1725193851042,-500.0,0.00025268,2]
[336825080,1725193851051,-505.07028392,0.00025268,2]
[336825081,1725193851061,-500.0,0.00025268,2]
[336825082,1725193851072,-500.0,0.00025268,2]
[336825083,1725193851082,-536.85408094,0.00025268,2]
[336825084,1725193851093,-500.0,0.00025268,2]
[336825085,1725193851104,-366.88312887,0.00025268,2]
[336825086,1725193851113,-500.0,0.00025268,2]
[336825087,1725193851123,-500.0,0.00025268,2]
[336825088,1725193851133,-1174.15,0.00025268,2]
[336825089,1725193851142,-500.0,0.00025268,2]
[336825090,1725193851152,-1793.31,0.00025268,2]
[336825091,1725193851161,-500.0,0.00025268,2]
[336825092,1725193851171,-500.0,0.00025268,2]
[336825093,1725193851180,-500.0,0.00025268,2]
[336825094,1725193851190,-500.0,0.00025268,2]
[336825095,1725193851199,-500.0,0.00025268,2]
[336825096,1725193851209,-500.0,0.00025268,2]
[336825097,1725193851218,-161.61020285,0.00025268,2]
[336825098,1725193852473,-67.2614519,0.00025247,2]
[336825104,1725194802042,167.475366,0.00019826,2]
[336825105,1725194843590,164.297787,0.00014247,2]
[336825139,1725195031761,-251.0,0.00020338,2]
[336825141,1725195031771,-3000.0,0.00020386,2]
[336825143,1725195031781,-1267.340328,0.00020702,2]
[336825144,1725195031790,-1267.107547,0.00020767,2]
[336825146,1725195031800,-300.0,0.00020868,2]
[336825147,1725195031810,-300.0,0.00020868,2]
[336825148,1725195031820,-5253.82225699,0.00020869,2]
[336825182,1725195038010,-942.36090731,0.00020869,2]
[336825183,1725195038022,-18703.8168357,0.00020869,2]
[336825185,1725195038031,-250.0,0.00020896,2]
[336825187,1725195038041,-193.051699,0.00021172,2]
[336825188,1725195038051,-250.0,0.0002144,2]
[336825189,1725195038060,-250.0,0.00021499,2]
[336825190,1725195038069,-159.8180718,0.0002155,2]
[336825191,1725195038078,-250.0,0.00021558,2]
[336825192,1725195038087,-250.0,0.00021617,2]
[336825193,1725195038096,-250.0,0.00021675,2]
[336825194,1725195038106,-250.0,0.00021734,2]
[336825195,1725195038115,-250.0,0.00021793,2]
[336825196,1725195038124,-250.0,0.00021852,2]
[336825197,1725195038135,-250.0,0.00021911,2]
[336825198,1725195038144,-167.475366,0.00021913,2]
[336825199,1725195038154,-250.0,0.00021969,2]
[336825200,1725195038164,-7112.0,0.00022,2]
[336825201,1725195038174,-211.0,0.00022,2]
[336825202,1725195038183,-250.0,0.00022028,2]
[336825203,1725195038192,-250.0,0.00022087,2]
[336825204,1725195038201,-250.0,0.00022146,2]
[336825205,1725195038212,-30133.1611852,0.00022183,2]
[336825206,1725195038222,-250.0,0.00022205,2]
[336825207,1725195038232,-250.0,0.00022263,2]
[336825208,1725195038242,-250.0,0.00022322,2]
[336825209,1725195038251,-250.0,0.00022381,2]
[336825210,1725195038261,-250.0,0.0002244,2]
[336825211,1725195038271,-5458.02780413,0.0002248,2]
[336825212,1725195038280,-250.0,0.00022499,2]
[336825213,1725195038290,-250.0,0.00022557,2]
[336825214,1725195038299,-500.773625,0.00022575,2]
[336825215,1725195038309,-420.0,0.00022703,2]
[336825216,1725195038318,-5458.02780413,0.00022769,2]
[336825217,1725195038328,-420.0,0.00022955,2]
[336825218,1725195038341,-211.0,0.00023014,2]
[336825219,1725195038350,-475.23012841,0.00023026,2]
[336825220,1725195038359,-5458.02780413,0.00023284,2]
[336825221,1725195038370,-180.15,0.00023472,3]
[336825222,1725195038380,-500.0,0.00023481,2]
[336825223,1725195038389,-500.0,0.00023481,2]
[336825224,1725195038399,-500.0,0.00023481,2]
[336825225,1725195038410,-174.27351171,0.00023481,2]
[336825226,1725195038420,-500.0,0.00023481,2]
[336825227,1725195038429,-500.0,0.00023481,2]
[336825228,1725195038439,-500.0,0.00023481,2]
[336825229,1725195038448,-567.38998536,0.00023481,2]
[336825230,1725195038457,-500.0,0.00023481,2]
[336825231,1725195038467,-500.0,0.00023481,2]
[336825232,1725195038476,-500.0,0.00023481,2]
[336825233,1725195038485,-500.0,0.00023481,2]
[336825234,1725195038495,-500.0,0.00023481,2]
[336825235,1725195038504,-500.0,0.00023481,2]
[336825236,1725195038514,-500.0,0.00023481,2]
[336825237,1725195038523,-500.0,0.00023481,2]
[336825238,1725195038532,-500.0,0.00023481,2]
[336825239,1725195038542,-500.0,0.00023481,2]
[336825240,1725195038553,-500.0,0.00023481,2]
[336825241,1725195038563,-500.0,0.00023481,2]
[336825242,1725195038573,-500.0,0.00023481,2]
[336825243,1725195038582,-500.0,0.00023481,2]
[336825244,1725195038591,-500.0,0.00023481,2]
[336825245,1725195038600,-500.0,0.00023481,2]
[336825246,1725195038609,-432.3626038,0.00023481,2]
[336825247,1725195038619,-500.0,0.00023481,2]
[336825248,1725195038628,-500.0,0.00023481,2]
[336825249,1725195038637,-500.0,0.00023481,2]
[336825250,1725195038647,-5458.02780413,0.00023482,2]
[336825251,1725195038657,-6121.1800238,0.00023598,2]
[336825252,1725195038666,-21694.8879832,0.00023622,3]
[336825253,1725195038675,-5458.02780413,0.0002372,2]
[336825254,1725195038685,-5458.02780413,0.00023879,2]
[336825255,1725195038695,-161.539892,0.00023947,2]
[336825256,1725195038705,-6121.18002378,0.00023984,2]
[336825257,1725195038714,-150.0,0.0002412,2]
[336825258,1725195038723,-465.51150642,0.00024178,2]
[336825259,1725195038732,-5458.02780413,0.00024336,2]
[336825260,1725195038742,-6121.18002378,0.0002437,2]
[336825261,1725195038751,-5458.02780413,0.00024573,2]
[336825262,1725195038761,-150.0,0.00024617,2]
[336825263,1725195038770,-43389.7759665,0.00024647,3]
[336825264,1725195038779,-500.0,0.00024656,2]
[336825265,1725195038788,-197.61340265,0.00024656,2]
[336825266,1725195038797,-500.0,0.00024656,2]
[336825267,1725195038806,-334.65083239,0.00024656,2]
[336825268,1725195038816,-500.0,0.00024656,2]
[336825269,1725195038826,-500.0,0.00024656,2]
[336825270,1725195038836,-500.0,0.00024656,2]
[336825271,1725195038846,-500.0,0.00024656,2]
[336825272,1725195038857,-374.80810724,0.00024656,2]
[336825273,1725195038869,-612.36567507,0.00024656,2]
[336825274,1725195038878,-17803.61118065,0.00024657,11]
[336825275,1725195038888,-500.0,0.00024657,2]
[336825276,1725195038897,-500.0,0.00024657,2]
[336825277,1725195038906,-500.0,0.00024657,2]
[336825278,1725195038915,-500.0,0.00024657,2]
[336825279,1725195038925,-500.0,0.00024657,2]
[336825280,1725195038934,-500.0,0.00024657,2]
[336825281,1725195038943,-500.0,0.00024657,2]
[336825282,1725195038952,-500.0,0.00024657,2]
[336825283,1725195038961,-500.0,0.00024657,2]
[336825284,1725195038971,-500.0,0.00024657,2]
[336825285,1725195038981,-500.0,0.00024657,2]
[336825286,1725195038990,-500.0,0.00024657,2]
[336825287,1725195038999,-500.0,0.00024657,2]
[336825288,1725195039008,-500.0,0.00024657,2]
[336825289,1725195039018,-500.0,0.00024657,2]
[336825290,1725195039027,-500.0,0.00024657,2]
[336825291,1725195039036,-500.0,0.00024657,2]
[336825292,1725195039045,-500.0,0.00024657,2]
[336825293,1725195039054,-500.0,0.00024657,2]
[336825294,1725195039063,-500.0,0.00024657,2]
[336825295,1725195039072,-500.0,0.00024657,2]
[336825296,1725195039081,-500.0,0.00024657,2]
[336825297,1725195039091,-500.0,0.00024657,2]
[336825298,1725195039101,-500.0,0.00024657,2]
[336825299,1725195039110,-500.0,0.00024657,2]
[336825300,1725195039121,-1699.89,0.00024657,2]
[336825301,1725195039131,-500.0,0.00024657,2]
[336825302,1725195039142,-500.0,0.00024657,2]
[336825303,1725195039155,-503.56852955,0.00024657,2]
[336825304,1725195039165,-500.0,0.00024657,2]
[336825305,1725195039175,-495.44253772,0.00024657,2]
[336825306,1725195039187,-500.0,0.00024657,2]
[336825307,1725195039198,-500.0,0.00024657,2]
[336825308,1725195039209,-268.47265207,0.00024657,2]
[336825309,1725195039218,-500.0,0.00024657,2]
[336825310,1725195039228,-500.0,0.00024657,2]
[336825311,1725195039239,-500.0,0.00024657,2]
[336825312,1725195039249,-13119.60856526,0.00024657,2]
[336825334,1725195040009,-1739.67143474,0.00024657,2]
[336825336,1725195040018,-500.0,0.00024657,2]
[336825338,1725195040027,-500.0,0.00024657,2]
[336825340,1725195040037,-500.0,0.00024657,2]
[336825342,1725195040046,-821.53,0.00024657,2]
[336825343,1725195040055,-508.33783817,0.00024657,2]
[336825344,1725195040063,-500.0,0.00024657,2]
[336825345,1725195040072,-493.90787111,0.00024657,2]
[336825346,1725195040082,-500.0,0.00024657,2]
[336825347,1725195040091,-500.0,0.00024657,2]
[336825348,1725195040100,-500.0,0.00024657,2]
[336825349,1725195040109,-499.42178004,0.00024657,2]
[336825350,1725195040118,-500.0,0.00024657,2]
[336825351,1725195040127,-3347.82,0.00024657,2]
[336825352,1725195040137,-1486.23,0.00024657,2]
[336825353,1725195040146,-500.0,0.00024657,2]
[336825354,1725195040155,-500.0,0.00024657,2]
[336825355,1725195040164,-2859.47,0.00024657,2]
[336825356,1725195040174,-500.0,0.00024657,2]
[336825357,1725195040184,-500.0,0.00024657,2]
[336825358,1725195040193,-500.0,0.00024657,2]
[336825359,1725195040202,-500.0,0.00024657,2]
[336825360,1725195040212,-3043.25,0.00024657,2]
[336825361,1725195040223,-500.0,0.00024657,2]
[336825362,1725195040234,-500.0,0.00024657,2]
[336825363,1725195040244,-500.0,0.00024657,2]
[336825364,1725195040254,-500.0,0.00024657,2]
[336825365,1725195040264,-1138.29,0.00024657,2]
[336825366,1725195040273,-502.67661693,0.00024657,2]
[336825367,1725195040283,-500.0,0.00024657,2]
[336825368,1725195040293,-500.0,0.00024657,2]
[336825369,1725195040303,-500.0,0.00024657,2]
[336825370,1725195040313,-594.87,0.00024657,2]
[336825371,1725195040324,-500.0,0.00024657,2]
[336825372,1725195040338,-500.0,0.00024657,2]
[336825373,1725195040348,-500.0,0.00024657,2]
[336825374,1725195040358,-500.0,0.00024657,2]
[336825375,1725195040367,-500.0,0.00024657,2]
[336825376,1725195040377,-500.0,0.00024657,2]
[336825377,1725195040387,-500.0,0.00024657,2]
[336825378,1725195040396,-500.0,0.00024657,2]
[336825379,1725195040406,-500.0,0.00024657,2]
[336825380,1725195040417,-500.0,0.00024657,2]
[336825381,1725195040429,-743.24,0.00024657,2]
[336825382,1725195040439,-500.0,0.00024657,2]
[336825383,1725195040450,-500.0,0.00024657,2]
[336825384,1725195040461,-500.0,0.00024657,2]
[336825385,1725195040471,-500.0,0.00024657,2]
[336825386,1725195040480,-500.0,0.00024657,2]
[336825387,1725195040489,-500.0,0.00024657,2]
[336825388,1725195040499,-14115.31,0.00024657,2]
[336825389,1725195040508,-500.0,0.00024657,2]
[336825390,1725195040518,-500.0,0.00024657,2]
[336825391,1725195040528,-500.0,0.00024657,2]
[336825392,1725195040537,-1764.59,0.00024657,2]
[336825393,1725195040547,-969.66,0.00024657,2]
[336825394,1725195040556,-643.38,0.00024657,2]
[336825395,1725195040565,-500.0,0.00024657,2]
[336825396,1725195040574,-500.0,0.00024657,2]
[336825397,1725195040584,-712.01,0.00024657,2]
[336825398,1725195040594,-500.0,0.00024657,2]
[336825399,1725195040603,-500.0,0.00024657,2]
[336825400,1725195040613,-500.0,0.00024657,2]
[336825401,1725195040623,-500.0,0.00024657,2]
[336825402,1725195040632,-3333.24,0.00024657,2]
[336825403,1725195040641,-500.0,0.00024657,2]
[336825404,1725195040652,-1752.08,0.00024657,2]
[336825405,1725195040662,-500.0,0.00024657,2]
[336825406,1725195040671,-500.0,0.00024657,2]
[336825407,1725195040681,-2056.47,0.00024657,2]
[336825408,1725195040691,-284.10395751,0.00024657,2]
[336825409,1725195040701,-890.73,0.00024657,2]
[336825410,1725195040710,-2118.16,0.00024657,2]
[336825411,1725195040719,-500.0,0.00024657,2]
[336825412,1725195040728,-500.0,0.00024657,2]
[336825413,1725195040738,-500.0,0.00024657,2]
[336825414,1725195040747,-500.0,0.00024657,2]
[336825415,1725195040757,-613.45,0.00024657,2]
[336825416,1725195040766,-500.0,0.00024657,2]
[336825417,1725195040776,-272.73879747,0.00024657,2]
[336825418,1725195040785,-500.0,0.00024657,2]
[336825419,1725195040794,-203.86507882,0.00024657,2]
[336825420,1725195040804,-500.0,0.00024657,2]
[336825421,1725195040813,-500.0,0.00024657,2]
[336825422,1725195040823,-500.0,0.00024657,2]
[336825423,1725195040833,-500.0,0.00024657,2]
[336825424,1725195040842,-500.0,0.00024657,2]
[336825425,1725195040851,-500.0,0.00024657,2]
[336825426,1725195040861,-500.0,0.00024657,2]
[336825427,1725195040871,-500.0,0.00024657,2]
[336825428,1725195040881,-1379.34,0.00024657,2]
[336825429,1725195040890,-500.0,0.00024657,2]
[336825430,1725195040902,-982.09,0.00024657,2]
[336825431,1725195040912,-500.0,0.00024657,2]
[336825432,1725195040922,-500.0,0.00024657,2]
[336825433,1725195040932,-500.0,0.00024657,2]
[336825434,1725195040943,-500.0,0.00024657,2]
[336825435,1725195040952,-1585.29,0.00024657,2]
[336825436,1725195040962,-500.0,0.00024657,2]
[336825437,1725195040972,-500.0,0.00024657,2]
[336825438,1725195040982,-500.0,0.00024657,2]
[336825439,1725195040993,-279.16,0.00024657,2]
[336825440,1725195041004,-587.0,0.00024699,2]
[336825441,1725195041014,-5458.02780413,0.00024748,2]
[336825442,1725195041025,-6121.18002378,0.00024755,2]
[336825443,1725195041035,-150.91940202,0.0002478,2]
[336825444,1725195041044,-360.3,0.00024842,3]
[336825445,1725195041055,-14559.65719949,0.0002492,11]
[336825446,1725195041064,-21694.8879832,0.00024921,3]
[336825447,1725195041074,-21694.8879832,0.00024921,3]
[336825448,1725195041083,-500.0,0.00024931,2]
[336825449,1725195041093,-500.0,0.00024931,2]
[336825450,1725195041103,-500.0,0.00024931,2]
[336825451,1725195041113,-500.0,0.00024931,2]
[336825452,1725195041123,-500.0,0.00024931,2]
[336825453,1725195041133,-500.0,0.00024931,2]
[336825454,1725195041142,-505.40818302,0.00024931,2]
[336825455,1725195041152,-500.0,0.00024931,2]
[336825456,1725195041162,-500.0,0.00024931,2]
[336825457,1725195041171,-500.0,0.00024931,2]
[336825458,1725195041183,-500.0,0.00024931,2]
[336825459,1725195041194,-500.0,0.00024931,2]
[336825460,1725195041203,-500.0,0.00024931,2]
[336825461,1725195041214,-500.0,0.00024931,2]
[336825462,1725195041223,-500.0,0.00024931,2]
[336825463,1725195041233,-500.0,0.00024931,2]
[336825464,1725195041242,-500.0,0.00024931,2]
[336825465,1725195041252,-500.0,0.00024931,2]
[336825466,1725195041262,-500.0,0.00024931,2]
[336825467,1725195041272,-502.89593893,0.00024931,2]
[336825468,1725195041282,-500.0,0.00024931,2]
[336825469,1725195041291,-500.0,0.00024931,2]
[336825470,1725195041301,-500.0,0.00024931,2]
[336825471,1725195041311,-502.88084183,0.00024931,2]
[336825472,1725195041320,-500.0,0.00024931,2]
[336825473,1725195041332,-1699.89,0.00024931,2]
[336825474,1725195041341,-500.0,0.00024931,2]
[336825475,1725195041351,-500.0,0.00024931,2]
[336825476,1725195041361,-500.0,0.00024931,2]
[336825477,1725195041371,-500.0,0.00024931,2]
[336825478,1725195041381,-500.0,0.00024931,2]
[336825479,1725195041390,-14859.28,0.00024931,2]
[336825480,1725195041399,-500.0,0.00024931,2]
[336825481,1725195041410,-500.0,0.00024931,2]
[336825482,1725195041420,-500.0,0.00024931,2]
[336825483,1725195041430,-821.53,0.00024931,2]
[336825484,1725195041440,-500.0,0.00024931,2]
[336825485,1725195041581,-500.0,0.00024931,2]
[336825486,1725195041591,-500.0,0.00024931,2]
[336825487,1725195041601,-3347.82,0.00024931,2]
[336825488,1725195041611,-1486.23,0.00024931,2]
[336825489,1725195041620,-500.0,0.00024931,2]
[336825490,1725195041631,-2859.47,0.00024931,2]
[336825491,1725195041642,-500.0,0.00024931,2]
[336825492,1725195041652,-3043.25,0.00024931,2]
[336825493,1725195041662,-501.59859197,0.00024931,2]
[336825494,1725195041671,-500.0,0.00024931,2]
[336825495,1725195041681,-500.0,0.00024931,2]
[336825496,1725195041691,-1138.29,0.00024931,2]
[336825497,1725195041702,-500.0,0.00024931,2]
[336825498,1725195041714,-500.0,0.00024931,2]
[336825499,1725195041725,-594.87,0.00024931,2]
[336825500,1725195041737,-500.0,0.00024931,2]
[336825501,1725195041747,-500.0,0.00024931,2]
[336825502,1725195041756,-500.0,0.00024931,2]
[336825503,1725195041766,-500.0,0.00024931,2]
[336825504,1725195041776,-500.0,0.00024931,2]
[336825505,1725195041786,-500.0,0.00024931,2]
[336825506,1725195041795,-500.0,0.00024931,2]
[336825507,1725195041805,-743.24,0.00024931,2]
[336825508,1725195041815,-500.0,0.00024931,2]
[336825509,1725195041826,-500.0,0.00024931,2]
[336825510,1725195041835,-500.0,0.00024931,2]
[336825511,1725195041845,-500.0,0.00024931,2]
[336825512,1725195041856,-14115.31,0.00024931,2]
[336825513,1725195041866,-501.81214045,0.00024931,2]
[336825514,1725195041876,-500.0,0.00024931,2]
[336825515,1725195041886,-500.0,0.00024931,2]
[336825516,1725195041896,-1764.59,0.00024931,2]
[336825517,1725195041906,-969.66,0.00024931,2]
[336825518,1725195041916,-643.38,0.00024931,2]
[336825519,1725195041925,-500.0,0.00024931,2]
[336825520,1725195041934,-501.51833889,0.00024931,2]
[336825521,1725195041943,-712.01,0.00024931,2]
[336825522,1725195041951,-500.0,0.00024931,2]
[336825523,1725195041961,-500.0,0.00024931,2]
[336825524,1725195041971,-500.0,0.00024931,2]
[336825525,1725195041980,-3333.24,0.00024931,2]
[336825526,1725195041990,-500.0,0.00024931,2]
[336825527,1725195041999,-1752.08,0.00024931,2]
[336825528,1725195042009,-500.0,0.00024931,2]
[336825529,1725195042018,-500.0,0.00024931,2]
[336825530,1725195042028,-2056.47,0.00024931,2]
[336825531,1725195042037,-890.73,0.00024931,2]
[336825532,1725195042046,-2118.16,0.00024931,2]
[336825533,1725195042055,-591.63282331,0.00024931,2]
[336825534,1725195042064,-500.0,0.00024931,2]
[336825535,1725195042074,-500.0,0.00024931,2]
[336825536,1725195042083,-500.0,0.00024931,2]
[336825537,1725195042093,-613.45,0.00024931,2]
[336825538,1725195042102,-500.0,0.00024931,2]
[336825539,1725195042112,-501.97666087,0.00024931,2]
[336825540,1725195042121,-500.0,0.00024931,2]
[336825541,1725195042132,-501.77420178,0.00024931,2]
[336825542,1725195042141,-500.0,0.00024931,2]
[336825543,1725195042151,-333.24026108,0.00024931,2]
[336825544,1725195042161,-500.0,0.00024931,2]
[336825545,1725195042170,-500.0,0.00024931,2]
[336825546,1725195042180,-1379.34,0.00024931,2]
[336825547,1725195042190,-500.0,0.00024931,2]
[336825548,1725195042199,-982.09,0.00024931,2]
[336825549,1725195042209,-500.0,0.00024931,2]
[336825550,1725195042219,-500.0,0.00024931,2]
[336825551,1725195042229,-500.0,0.00024931,2]
[336825552,1725195042238,-500.0,0.00024931,2]
[336825553,1725195042247,-1585.29,0.00024931,2]
[336825554,1725195042257,-512.48922995,0.00024931,2]
[336825555,1725195042267,-21694.8879832,0.00025124,3]
[336825556,1725195042276,-500.0,0.00025135,2]
[336825557,1725195042286,-6121.18002378,0.00025141,2]
[336825558,1725195042296,-500.0,0.00025146,2]
[336825559,1725195042306,-500.0,0.00025146,2]
[336825560,1725195042315,-500.0,0.00025146,2]
[336825561,1725195042326,-500.0,0.00025146,2]
[336825562,1725195042340,-500.0,0.00025146,2]
[336825563,1725195042351,-500.0,0.00025146,2]
[336825564,1725195042360,-500.0,0.00025146,2]
[336825565,1725195042369,-352.40296083,0.00025146,2]
[336825566,1725195042383,-500.0,0.00025146,2]
[336825567,1725195042392,-500.0,0.00025146,2]
[336825568,1725195042402,-500.0,0.00025146,2]
[336825571,1725195042413,-500.0,0.00025146,2]
[336825573,1725195042423,-500.0,0.00025146,2]
[336825575,1725195042433,-500.0,0.00025146,2]
[336825577,1725195042442,-500.0,0.00025146,2]
[336825579,1725195042452,-500.0,0.00025146,2]
[336825581,1725195042462,-500.0,0.00025146,2]
[336825583,1725195042472,-501.39074872,0.00025146,2]
[336825585,1725195042482,-500.0,0.00025146,2]
[336825587,1725195042492,-500.0,0.00025146,2]
[336825589,1725195042502,-500.0,0.00025146,2]
[336825590,1725195042512,-500.0,0.00025146,2]
[336825593,1725195042521,-500.0,0.00025146,2]
[336825595,1725195042532,-500.0,0.00025146,2]
[336825597,1725195042541,-500.0,0.00025146,2]
[336825599,1725195042551,-500.0,0.00025146,2]
[336825600,1725195042561,-837.8,0.00025146,2]
[336825601,1725195042571,-500.0,0.00025146,2]
[336825602,1725195042580,-1338.94,0.00025146,2]
[336825603,1725195042590,-324.27186465,0.00025146,2]
[336825604,1725195042599,-500.0,0.00025146,2]
[336825605,1725195042609,-500.0,0.00025146,2]
[336825606,1725195042618,-500.0,0.00025146,2]
[336825607,1725195042627,-526.8,0.00025146,2]
[336825608,1725195042639,-500.0,0.00025146,2]
[336825609,1725195042649,-911.05,0.00025146,2]
[336825610,1725195042659,-468.42360655,0.00025146,2]
[336825611,1725195042668,-331.13218118,0.00025146,2]
[336825612,1725195042677,-500.0,0.00025146,2]
[336825614,1725195042686,-501.28949647,0.00025146,2]
[336825616,1725195042695,-500.0,0.00025146,2]
[336825618,1725195042705,-500.0,0.00025146,2]
[336825620,1725195042714,-503.86842878,0.00025146,2]
[336825621,1725195042723,-500.0,0.00025146,2]
[336825623,1725195042732,-500.0,0.00025166,2]
[336825625,1725195042742,-5458.02780418,0.00025192,2]
[336825626,1725195042752,-36523.65076555,0.00025195,3]
[336825644,1725195495448,233.903536,0.00014247,2]
[336825646,1725195738363,173.7773967,0.0002,2]
[336825647,1725195812368,302.27461649,0.0002,2]